[Event "RUS-chTW Premier 2019"]
[Site "Sochi"]
[Date "2019.05.02"]
[Round "2.14"]
[White "Zakharova, Viktoriya"]
[Black "Smirnova, Ekaterina"]
[Result "0-1"]
[ECO "C18"]
[WhiteElo "1926"]
[BlackElo "2204"]
[Annotator "NA"]
[PlyCount "132"]
[EventDate "2019.05.01"]
[EventType "team-tourn"]
[EventCountry "RUS"]
[SourceTitle "playchess.com"]
[Source "ChessBase"]
[SourceQuality "1"]
[TimeControl "40/5400+30:1800+30"]

1. e4 {[%emt 0:00:00]} e6 {[%emt 0:00:00]} 2. d4 {[%emt 0:00:00]} d5 {[%emt 0:00:00]} 3. Nc3 {[%emt 0:00:00]} Bb4 {[%emt 0:00:00]} 4. e5 {[%emt 0:00:00]} c5 {[%emt 0:00:00]} 5. a3 {[%emt 0:00:02]} Bxc3+ {[%emt 0:00:00]} 6. bxc3 {[%emt 0:00:06]} Qc7 {[%emt 0:00:02]} 7. Nf3 {[%emt 0:02:10]} Ne7 {[%emt 0:01:12]} 8. Be2 {[%emt 0:02:53]} b6 {[%emt 0:00:50]} 9. a4 {[%emt 0:02:04]} O-O {[%emt 0:03:21]} 10. O-O {[%emt 0:05:21]} cxd4 {[%emt 0:11:27]} 11. cxd4 {[%emt 0:00:38]} Ba6 {[%emt 0:00:57]} 12. Bd3 {[%emt 0:12:44]} Bxd3 {[%emt 0:02:46]} 13. Qxd3 {[%emt 0:00:42]} Rc8 {[%emt 0:01:07]} 14. Ba3 {[%emt 0:12:57]} Ng6 {[%emt 0:02:03]} 15. Nd2 {[%emt 0:12:20]} Qc3 {[%emt 0:05:40]} 16. Qxc3 {[%emt 0:01:30]} Rxc3 {[%emt 0:00:02]} 17. Rfc1 {[%emt 0:00:40]} Na6 {[%emt 0:02:29]} 18. Bb2 {[%emt 0:02:07]} Rc7 {[%emt 0:01:23]} 19. Ba3 {[%emt 0:23:52]} Rac8 {[%emt 0:01:42]} 20. Ra2 {[%emt 0:00:33]} Nf4 {[%emt 0:01:48]} 21. Kf1 {[%emt 0:00:15]} Nd3 {[%emt 0:01:58]} 22. cxd3 {[%emt 0:01:41]} Rxc1+ {[%emt 0:00:06]} 23. Bxc1 {[%emt 0:00:04]} Rxc1+ {[%emt 0:00:03]} 24. Ke2 {[%emt 0:00:03]} Nb4 {[%emt 0:00:29]} 25. Rb2 {[%emt 0:00:16]} Re1+ {[%emt 0:04:24]} 26. Kf3 {[%emt 0:03:59]} a5 {[%emt 0:05:37]} 27. Nb1 {[%emt 0:05:15]} f6 {[%emt 0:01:47]} 28. exf6 {[%emt 0:01:27]} gxf6 {[%emt 0:00:01]} 29. Nc3 {[%emt 0:02:03]} Kf7 {[%emt 0:02:41]} 30. Na2 {[%emt 0:03:28]} Nxa2 {[%emt 0:01:12]} 31. Rxa2 {[%emt 0:00:02]} Rb1 {[%emt 0:00:06]} 32. Ke3 {[%emt 0:04:58]} Rb4 {[%emt 0:00:04]} 33. f4 {[%emt 0:00:32]} h5 {[%emt 0:00:08]} 34. g3 {[%emt 0:00:09]} Kg6 {[%emt 0:00:16]} 35. h3 {[%emt 0:01:15]} Kf5 {[%emt 0:00:27]} 36. Ra3 {[%emt 0:00:45]} Kg6 {[%emt 0:03:47]} 37. Ra2 {[%emt 0:00:18]} h4 {[%emt 0:05:20]} 38. g4 {[%emt 0:00:19]} Rb1 {[%emt 0:00:27]} 39. Kf2 {[%emt 0:01:00]} Rh1 {[%emt 0:00:47]} 40. Kg2 {[%emt 0:00:00]} Rd1 {[%emt 0:00:00]} 41. Ra3 {[%emt 0:05:53]} Rd2+ {[%emt 0:00:13]} 42. Kg1 {[%emt 0:00:08]} Rb2 {[%emt 0:00:58]} 43. Rc3 {[%emt 0:04:46]} Rb4 {[%emt 0:00:06]} 44. Rc6 {[%emt 0:00:11]} Rxd4 {[%emt 0:01:22]} 45. Rxe6 {[%emt 0:00:46]} Rxf4 {[%emt 0:00:50]} 46. Rxb6 {[%emt 0:00:35]} Rxa4 {[%emt 0:00:07]} 47. Rb5 {[%emt 0:00:40]} Rd4 {[%emt 0:01:42]} 48. Rxa5 {[%emt 0:00:08]} Rxd3 {[%emt 0:00:01]} 49. Kh2 {[%emt 0:01:15]} Kg5 {[%emt 0:02:06]} 50. Ra2 {[%emt 0:06:15]} d4 {[%emt 0:01:51]} 51. Rf2 {[%emt 0:03:28]} Re3 {[%emt 0:01:36]} 52. Rf5+ {[%emt 0:00:17]} Kg6 {[%emt 0:00:04]} 53. Rd5 {[%emt 0:01:07]} d3 {[%emt 0:00:06]} 54. Kg2 {[%emt 0:01:00]} Kf7 {[%emt 0:01:02]} 55. Kf2 {[%emt 0:07:10]} Rxh3 {[%emt 0:00:30]} 56. g5 {[%emt 0:00:12]} fxg5 {[%emt 0:01:25]} 57. Rxg5 {[%emt 0:00:06]} Kf6 {[%emt 0:00:12]} 58. Rh5 {[%emt 0:04:47]} Ke6 {[%emt 0:00:12]} 59. Rh8 {[%emt 0:00:43]} Ke5 {[%emt 0:01:03]} 60. Kg2 {[%emt 0:01:00]} Re3 {[%emt 0:02:38]} 61. Kf2 {[%emt 0:00:44]} Re4 {[%emt 0:00:32]} 62. Kf3 {[%emt 0:00:43]} Rd4 {[%emt 0:01:49]} 63. Re8+ {[%emt 0:00:20]} Kd6 {[%emt 0:01:26]} 64. Rd8+ {[%emt 0:00:42]} Kc5 {[%emt 0:00:06]} 65. Rc8+ {[%emt 0:00:10]} Kb4 {[%emt 0:00:04]} 66. Rb8+ {[%emt 0:00:41]} Kc3 {[%emt 0:00:21]} 0-1

[Event "RUS-chTW Premier 2019"]
[Site "Sochi"]
[Date "2019.05.02"]
[Round "2.15"]
[White "Tomashevskaya, Lidia"]
[Black "Degtyareva, Kristina"]
[Result "0-1"]
[ECO "C77"]
[WhiteElo "2128"]
[BlackElo "1812"]
[Annotator "NA"]
[PlyCount "58"]
[EventDate "2019.05.01"]
[EventType "team-tourn"]
[EventCountry "RUS"]
[SourceTitle "playchess.com"]
[Source "ChessBase"]
[SourceQuality "1"]
[TimeControl "40/5400+30:1800+30"]

1. e4 e5 {[%emt 0:00:00]} 2. Nf3 {[%emt 0:00:00]} Nc6 {[%emt 0:00:00]} 3. Bb5 {[%emt 0:00:00]} a6 {[%emt 0:00:00]} 4. Ba4 {[%emt 0:00:00]} Nf6 {[%emt 0:00:03]} 5. Qe2 {[%emt 0:00:40]} b5 {[%emt 0:00:43]} 6. Bb3 {[%emt 0:00:05]} Bc5 {[%emt 0:00:54]} 7. c3 {[%emt 0:00:52]} d6 {[%emt 0:00:22]} 8. h3 {[%emt 0:00:32]} Bb6 {[%emt 0:01:22]} 9. O-O {[%emt 0:01:28]} O-O {[%emt 0:00:11]} 10. Rd1 {[%emt 0:00:40]} Qe7 {[%emt 0:01:05]} 11. d4 {[%emt 0:10:55]} exd4 {[%emt 0:03:43]} 12. cxd4 {[%emt 0:00:04]} Na5 {[%emt 0:01:31]} 13. Bc2 {[%emt 0:02:57]} Bb7 {[%emt 0:00:32]} 14. Bg5 {[%emt 0:08:36]} h6 {[%emt 0:04:24]} 15. Bxf6 {[%emt 0:01:40]} Qxf6 {[%emt 0:09:33]} 16. Qd3 {[%emt 0:14:30]} c5 {[%emt 0:04:08]} 17. Nc3 {[%emt 0:03:47]} Nc4 {[%emt 0:02:28]} 18. Rab1 {[%emt 0:00:30]} cxd4 {[%emt 0:02:57]} 19. Nxd4 {[%emt 0:23:43]} Rac8 {[%emt 0:04:26]} 20. Nce2 {[%emt 0:04:40]} Rfe8 21. e5 {[%emt 0:00:19]} Rxe5 {[%emt 0:12:18]} 22. Qh7+ {[%emt 0:01:56]} Kf8 23. Nf5 {[%emt 0:00:40]} g6 {[%emt 0:19:12]} 24. Qxh6+ Ke8 {[%emt 0:12:43]} 25. Neg3 {[%emt 0:03:00]} Bxf2+ 26. Kxf2 Ne3 {[%emt 0:00:52]} 27. Bb3 {[%emt 0:13:05]} Nxf5 {[%emt 0:04:35]} 28. Qf4 {[%emt 0:06:33]} Nxg3 {[%emt 0:05:34]} 29. Qxf6 {[%emt 0:01:36]} Ne4+ {[%emt 0:00:07]} 0-1

[Event "RUS-chTW Premier 2019"]
[Site "Sochi"]
[Date "2019.05.02"]
[Round "2.16"]
[White "Makarova, Ekaterina"]
[Black "Tishova, Svetlana"]
[Result "0-1"]
[ECO "D02"]
[WhiteElo "1630"]
[BlackElo "2093"]
[Annotator "NA"]
[PlyCount "126"]
[EventDate "2019.05.01"]
[EventType "team-tourn"]
[EventCountry "RUS"]
[SourceTitle "playchess.com"]
[Source "ChessBase"]
[SourceQuality "1"]
[TimeControl "40/5400+30:1800+30"]

1. d4 {[%emt 0:00:00]} Nf6 {[%emt 0:00:00]} 2. Nf3 {[%emt 0:00:10]} d5 {[%emt 0:00:17]} 3. Bf4 {[%emt 0:00:07]} c5 {[%emt 0:00:14]} 4. c3 {[%emt 0:00:09]} Nc6 {[%emt 0:00:07]} 5. e3 {[%emt 0:00:41]} Qb6 {[%emt 0:00:08]} 6. Qb3 {[%emt 0:00:09]} c4 {[%emt 0:00:12]} 7. Qc2 {[%emt 0:00:12]} Bf5 {[%emt 0:00:16]} 8. Qc1 {[%emt 0:00:12]} e6 {[%emt 0:00:56]} 9. Nbd2 {[%emt 0:00:10]} h6 {[%emt 0:00:48]} 10. h3 {[%emt 0:00:12]} Qd8 {[%emt 0:00:26]} 11. Be2 {[%emt 0:03:14]} Be7 {[%emt 0:00:25]} 12. O-O {[%emt 0:00:54]} O-O {[%emt 0:00:28]} 13. Bd1 {[%emt 0:07:20]} Bd6 {[%emt 0:02:56]} 14. Bxd6 {[%emt 0:01:35]} Qxd6 {[%emt 0:00:05]} 15. Bc2 {[%emt 0:00:08]} b5 {[%emt 0:00:24]} 16. Re1 {[%emt 0:02:34]} Bxc2 {[%emt 0:12:41]} 17. Qxc2 {[%emt 0:00:11]} b4 {[%emt 0:04:21]} 18. e4 {[%emt 0:11:13]} Nh5 {[%emt 0:00:57]} 19. exd5 {[%emt 0:06:06]} exd5 {[%emt 0:00:20]} 20. Ne5 {[%emt 0:07:28]} bxc3 {[%emt 0:07:54]} 21. bxc3 {[%emt 0:05:45]} Nxe5 {[%emt 0:04:12]} 22. Rxe5 {[%emt 0:01:36]} Nf4 {[%emt 0:06:32]} 23. Nf1 {[%emt 0:16:49]} Nd3 {[%emt 0:03:06]} 24. Re3 {[%emt 0:07:25]} Rab8 {[%emt 0:02:30]} 25. Rb1 {[%emt 0:04:16]} Rxb1 {[%emt 0:01:54]} 26. Qxb1 {[%emt 0:00:04]} Rb8 {[%emt 0:00:05]} 27. Qd1 {[%emt 0:02:46]} Rb2 {[%emt 0:07:35]} 28. Qh5 {[%emt 0:15:12]} Rxf2 {[%emt 0:08:30]} 29. Rxd3 {[%emt 0:01:16]} Rxf1+ {[%emt 0:00:06]} 30. Kxf1 {[%emt 0:00:06]} cxd3 {[%emt 0:00:02]} 31. Qf3 {[%emt 0:01:30]} Qa6 {[%emt 0:01:00]} 32. Ke1 {[%emt 0:00:55]} Qxa2 {[%emt 0:02:44]} 33. Qxd3 {[%emt 0:00:29]} Qxg2 {[%emt 0:00:38]} 34. Qf5 {[%emt 0:04:02]} g6 {[%emt 0:02:36]} 35. Qc8+ {[%emt 0:01:14]} Kg7 {[%emt 0:00:10]} 36. Qc7 {[%emt 0:01:04]} Qe4+ {[%emt 0:01:42]} 37. Kd2 {[%emt 0:00:28]} a6 {[%emt 0:00:27]} 38. Qa5 {[%emt 0:00:28]} Qe6 {[%emt 0:01:12]} 39. Qa1 {[%emt 0:00:41]} h5 {[%emt 0:00:27]} 40. h4 {[%emt 0:00:24]} Qb6 {[%emt 0:00:30]} 41. Qe1 {[%emt 0:00:28]} Qf6 {[%emt 0:00:42]} 42. Qh1 {[%emt 0:00:57]} Qd6 {[%emt 0:04:37]} 43. Kc2 {[%emt 0:02:53]} a5 {[%emt 0:00:30]} 44. Kb3 {[%emt 0:02:44]} Qc6 {[%emt 0:01:44]} 45. Qh2 {[%emt 0:01:44]} a4+ {[%emt 0:00:06]} 46. Kc2 {[%emt 0:00:53]} Qb7 {[%emt 0:02:18]} 47. Qe5+ {[%emt 0:02:16]} Kh7 {[%emt 0:00:22]} 48. Qd6 {[%emt 0:05:12]} Qb3+ {[%emt 0:01:29]} 49. Kd2 {[%emt 0:01:38]} Qb2+ {[%emt 0:00:31]} 50. Kd3 {[%emt 0:00:27]} Qb1+ {[%emt 0:00:29]} 51. Kd2 {[%emt 0:00:13]} Qf5 {[%emt 0:00:17]} 52. Qe7 {[%emt 0:03:11]} Qf2+ {[%emt 0:00:53]} 53. Kd3 {[%emt 0:00:17]} a3 {[%emt 0:00:33]} 54. Qxa3 {[%emt 0:00:31]} Qxh4 {[%emt 0:00:03]} 55. Qd6 {[%emt 0:03:23]} Qe4+ {[%emt 0:00:12]} 56. Kd2 {[%emt 0:00:20]} h4 {[%emt 0:00:23]} 57. Qf6 {[%emt 0:00:50]} Kg8 {[%emt 0:00:27]} 58. Qf1 {[%emt 0:07:14]} Kg7 {[%emt 0:01:17]} 59. Qh3 {[%emt 0:00:48]} Qf4+ {[%emt 0:01:04]} 60. Ke2 {[%emt 0:00:33]} Qg3 {[%emt 0:00:49]} 61. Qh1 {[%emt 0:00:23]} Qg4+ {[%emt 0:06:33]} 62. Kd2 {[%emt 0:00:39]} h3 {[%emt 0:00:23]} 63. Qxd5 {[%emt 0:00:53]} Qg2+ {[%emt 0:00:06]} 0-1

[Event "RUS-chTW Premier 2019"]
[Site "Sochi"]
[Date "2019.05.03"]
[Round "3.1"]
[White "Ushenina, Anna"]
[Black "Kosteniuk, Alexandra"]
[Result "1-0"]
[ECO "E01"]
[WhiteElo "2442"]
[BlackElo "2546"]
[Annotator "ChessBase"]
[PlyCount "133"]
[EventDate "2019.05.01"]
[EventType "team-tourn"]
[EventCountry "RUS"]
[SourceTitle "playchess.com"]
[Source "ChessBase"]
[SourceQuality "1"]
[TimeControl "40/5400+30:1800+30"]

1. d4 {[%emt 0:00:00]} Nf6 {[%emt 0:00:00]} 2. c4 {[%emt 0:00:00]} e6 {[%emt 0:00:00]} 3. g3 {[%emt 0:00:00]} d5 {[%emt 0:00:00]} 4. Bg2 {[%emt 0:00:39]} Bb4+ {[%emt 0:00:18]} 5. Nd2 {[%emt 0:00:27]} O-O {[%emt 0:00:30]} 6. Ngf3 {[%emt 0:00:17]} b6 {[%emt 0:00:33]} 7. O-O {[%emt 0:00:41]} Bb7 {[%emt 0:00:44]} 8. a3 {[%emt 0:01:37]} Be7 {[%emt 0:00:48]} 9. cxd5 {[%emt 0:02:59]} exd5 {[%emt 0:02:01]} 10. b4 {[%emt 0:03:55]} Qe8 {[%emt 0:08:07]} 11. Nh4 {[%emt 0:19:02]} a5 {[%emt 0:09:03]} 12. bxa5 {[%emt 0:00:57]} Rxa5 {[%emt 0:00:35]} 13. Nf5 {[%emt 0:00:31]} Bd8 {[%emt 0:03:18]} 14. a4 {[%emt 0:16:33]} Bc8 {[%emt 0:28:26]} 15. Ne3 {[%emt 0:10:08]} Be7 {[%emt 0:01:13]} 16. Nb1 {[%emt 0:15:54]} Nc6 {[%emt 0:05:59]} 17. Nc3 {[%emt 0:09:25]} Be6 {[%emt 0:00:44]} 18. Nb5 {[%emt 0:00:22]} Qd7 {[%emt 0:03:57]} 19. Bd2 {[%emt 0:04:51]} Rxb5 {[%emt 0:02:07]} 20. axb5 {[%emt 0:00:02]} Nxd4 {[%emt 0:00:05]} 21. Qa4 {[%emt 0:05:51]} Nxe2+ {[%emt 0:05:52]} 22. Kh1 {[%emt 0:00:01]} Ne4 {[%emt 0:01:39]} 23. Bxe4 {[%emt 0:02:18]} dxe4 {[%emt 0:00:06]} 24. Bb4 {[%emt 0:00:58]} Bg4 {[%emt 0:11:48]} 25. Nxg4 {[%emt 0:00:04]} Qxg4 {[%emt 0:00:03]} 26. Ra3 {[%emt 0:00:07]} e3 {[%emt 0:04:05]} 27. Rxe3 {[%emt 0:00:06]} Bc5 {[%emt 0:03:03]} 28. Rb3 {[%emt 0:01:41]} Re8 {[%emt 0:02:12]} 29. Qa3 {[%emt 0:02:16]} Qh3 {[%emt 0:04:13]} 30. Qa1 {[%emt 0:00:12]} Qe6 {[%emt 0:02:12]} 31. Qd1 {[%emt 0:01:16]} Bd4 {[%emt 0:01:08]} 32. Rf3 {[%emt 0:01:10]} g5 {[%emt 0:00:20]} 33. Qb3 {[%emt 0:00:25]} Qd7 {[%emt 0:00:42]} 34. Qd3 {[%emt 0:01:31]} Re5 {[%emt 0:00:32]} 35. Re1 {[%emt 0:00:32]} Qd5 {[%emt 0:00:31]} 36. Qb3 {[%emt 0:00:24]} Qxb3 {[%emt 0:00:20]} 37. Rxb3 {[%emt 0:00:03]} Bxf2 {[%emt 0:00:23]} 38. Rf1 {[%emt 0:00:18]} Bd4 {[%emt 0:00:47]} 39. Bd2 {[%emt 0:00:46]} Rd5 {[%emt 0:00:35]} 40. Re1 {[%emt 0:00:00]} Re5 {[%emt 0:00:00]} 41. Rd3 {[%emt 0:10:52]} Bf2 {[%emt 0:02:12]} 42. Rd8+ {[%emt 0:05:09]} Kg7 {[%emt 0:00:04]} 43. Bc3 {[%emt 0:00:16]} Bxe1 {[%emt 0:00:18]} 44. Bxe5+ {[%emt 0:00:03]} f6 {[%emt 0:00:54]} 45. Bxc7 {[%emt 0:01:39]} Nc3 {[%emt 0:00:08]} 46. Bxb6 {[%emt 0:00:49]} Nxb5 {[%emt 0:00:03]} 47. Rd5 {[%emt 0:05:09]} Na3 {[%emt 0:00:15]} 48. Bd4 {[%emt 0:00:14]} Nc2 {[%emt 0:05:06]} 49. Rxg5+ {[%emt 0:05:48]} Kf7 {[%emt 0:00:05]} 50. Rg4 {[%emt 0:01:39]} h5 {[%emt 0:02:14]} 51. Re4 {[%emt 0:00:48]} Ba5 {[%emt 0:02:02]} 52. Bb2 {[%emt 0:01:08]} Ne1 {[%emt 0:00:42]} 53. Re3 {[%emt 0:00:38]} Bd2 {[%emt 0:01:22]} 54. Ra3 {[%emt 0:00:51]} Bg5 {[%emt 0:00:22]} 55. h4 {[%emt 0:00:43]} Bh6 {[%emt 0:00:03]} 56. Rc3 {[%emt 0:00:49]} Kg6 {[%emt 0:01:59]} 57. Kg1 {[%emt 0:00:23]} Kf5 {[%emt 0:00:11]} 58. Kf1 {[%emt 0:01:12]} Bd2 {[%emt 0:00:05]} 59. Rc5+ {[%emt 0:01:38]} Kg4 {[%emt 0:00:56]} 60. Ke2 {[%emt 0:00:06]} Nf3 {[%emt 0:00:07]} 61. Bxf6 {[%emt 0:00:19]} Be1 {[%emt 0:01:47]} 62. Rc4+ {[%emt 0:01:32]} Kxg3 {[%emt 0:00:06]} 63. Ra4 {[%emt 0:00:19]} Kg2 {[%emt 0:01:49]} 64. Ra3 {[%emt 0:00:06]} Bxh4 {[%emt 0:00:03]} 65. Rxf3 {[%emt 0:00:03]} Bg3 {[%emt 0:00:01]} 66. Rf5 {[%emt 0:00:43]} h4 {[%emt 0:00:08]} 67. Rg5 {[%emt 0:00:13]} 1-0

[Event "RUS-chTW Premier 2019"]
[Site "Sochi"]
[Date "2019.05.03"]
[Round "3.2"]
[White "Shuvalova, Polina"]
[Black "Pogonina, Natalija"]
[Result "0-1"]
[ECO "C67"]
[WhiteElo "2439"]
[BlackElo "2453"]
[Annotator "RC"]
[PlyCount "118"]
[EventDate "2019.05.01"]
[EventType "team-tourn"]
[EventCountry "RUS"]
[SourceTitle "playchess.com"]
[Source "ChessBase"]
[SourceQuality "1"]
[TimeControl "40/5400+30:1800+30"]

1. e4 {[%emt 0:00:00]} e5 {[%emt 0:00:00]} 2. Nf3 {[%emt 0:00:00]} Nc6 {[%emt 0:00:00]} 3. Bb5 {[%emt 0:00:00]} Nf6 {[%emt 0:00:00]} 4. O-O {[%emt 0:04:29]} Nxe4 {[%emt 0:00:12]} 5. Re1 {[%emt 0:00:38]} Nd6 {[%emt 0:00:47]} 6. Nxe5 {[%emt 0:00:06]} Be7 {[%emt 0:12:43]} 7. Bf1 {[%emt 0:00:07]} Nf5 {[%emt 0:02:39]} 8. Bd3 {[%emt 0:10:36]} Nxe5 {[%emt 0:22:48]} 9. Bxf5 {[%emt 0:11:23]} d6 {[%emt 0:08:40]} 10. Bxc8 {[%emt 0:05:27]} Rxc8 {[%emt 0:00:15]} 11. Nc3 {[%emt 0:05:41]} O-O {[%emt 0:05:04]} 12. d4 {[%emt 0:01:44]} Ng6 {[%emt 0:01:43]} 13. Nd5 {[%emt 0:00:37]} Bg5 {[%emt 0:08:49]} 14. f4 {[%emt 0:03:59]} c6 {[%emt 0:10:12]} 15. fxg5 {[%emt 0:00:45]} cxd5 {[%emt 0:00:05]} 16. c3 {[%emt 0:01:13]} Re8 {[%emt 0:01:00]} 17. Bd2 {[%emt 0:03:36]} Rxe1+ {[%emt 0:04:23]} 18. Qxe1 {[%emt 0:00:07]} Qd7 {[%emt 0:00:16]} 19. Qf1 {[%emt 0:09:33]} Re8 {[%emt 0:00:18]} 20. Re1 {[%emt 0:00:05]} Re4 {[%emt 0:01:03]} 21. Rxe4 {[%emt 0:05:29]} dxe4 {[%emt 0:00:05]} 22. b3 {[%emt 0:01:57]} d5 {[%emt 0:01:18]} 23. Qf2 {[%emt 0:01:40]} Qg4 {[%emt 0:05:06]} 24. Qf1 {[%emt 0:02:11]} a6 {[%emt 0:02:49]} 25. c4 {[%emt 0:03:32]} Qd7 {[%emt 0:05:05]} 26. Be3 {[%emt 0:04:31]} Nf8 {[%emt 0:01:13]} 27. h3 {[%emt 0:02:46]} Qe6 {[%emt 0:01:08]} 28. Qc1 {[%emt 0:04:36]} Qd7 {[%emt 0:01:43]} 29. Kh1 {[%emt 0:00:56]} Qd8 {[%emt 0:00:34]} 30. cxd5 {[%emt 0:03:21]} Qxd5 {[%emt 0:00:07]} 31. Qc8 {[%emt 0:00:13]} g6 {[%emt 0:03:05]} 32. Bf4 {[%emt 0:02:52]} Qxd4 {[%emt 0:01:18]} 33. Qb8 {[%emt 0:00:08]} f5 {[%emt 0:00:56]} 34. gxf6 {[%emt 0:05:21]} Qxf6 {[%emt 0:00:06]} 35. Be3 {[%emt 0:00:43]} Qe7 {[%emt 0:01:07]} 36. Qc8 {[%emt 0:01:45]} Qd7 {[%emt 0:00:34]} 37. Qb8 {[%emt 0:01:15]} Qe7 {[%emt 0:00:16]} 38. Kg1 {[%emt 0:00:35]} h5 {[%emt 0:00:28]} 39. Kf2 {[%emt 0:03:12]} Kh7 {[%emt 0:00:37]} 40. Bd4 {[%emt 0:00:00]} Kg8 {[%emt 0:00:00]} 41. Qc8 {[%emt 0:14:55]} Qd6 {[%emt 0:14:46]} 42. Be3 {[%emt 0:06:53]} Qd5 {[%emt 0:04:14]} 43. Qc3 {[%emt 0:05:44]} Kf7 {[%emt 0:03:16]} 44. Ke2 {[%emt 0:02:29]} Ne6 {[%emt 0:04:09]} 45. Qc8 {[%emt 0:00:47]} Qc6 {[%emt 0:01:43]} 46. Qb8 {[%emt 0:03:01]} Qc7 {[%emt 0:02:03]} 47. Qxc7+ {[%emt 0:01:50]} Nxc7 {[%emt 0:00:05]} 48. Bd4 {[%emt 0:00:35]} Nd5 {[%emt 0:00:21]} 49. g4 {[%emt 0:00:33]} Ke6 {[%emt 0:00:38]} 50. Kf2 {[%emt 0:00:18]} Nf4 {[%emt 0:01:25]} 51. Be3 {[%emt 0:00:41]} Ke5 {[%emt 0:00:44]} 52. gxh5 {[%emt 0:00:33]} gxh5 {[%emt 0:00:16]} 53. Kg3 {[%emt 0:00:14]} Nd5 {[%emt 0:00:46]} 54. Ba7 {[%emt 0:00:37]} b6 {[%emt 0:01:02]} 55. Kh4 {[%emt 0:00:27]} e3 {[%emt 0:00:40]} 56. Bb8+ {[%emt 0:00:41]} Ke4 {[%emt 0:00:17]} 57. Bg3 {[%emt 0:00:24]} Nf4 {[%emt 0:00:36]} 58. a4 {[%emt 0:00:32]} Kf3 {[%emt 0:00:19]} 59. a5 {[%emt 0:00:29]} bxa5 {[%emt 0:00:15]} 0-1

[Event "RUS-chTW Premier 2019"]
[Site "Sochi"]
[Date "2019.05.03"]
[Round "3.3"]
[White "Girya, Olga"]
[Black "Kovalevskaya, Ekaterina"]
[Result "1-0"]
[ECO "D30"]
[WhiteElo "2449"]
[BlackElo "2413"]
[Annotator "NA"]
[PlyCount "127"]
[EventDate "2019.05.01"]
[EventType "team-tourn"]
[EventCountry "RUS"]
[SourceTitle "playchess.com"]
[Source "ChessBase"]
[SourceQuality "1"]
[TimeControl "40/5400+30:1800+30"]

1. d4 {[%emt 0:00:00]} d5 {[%emt 0:00:00]} 2. c4 {[%emt 0:00:00]} e6 {[%emt 0:00:00]} 3. Nf3 {[%emt 0:00:10]} c5 {[%emt 0:00:00]} 4. cxd5 {[%emt 0:00:21]} exd5 {[%emt 0:00:00]} 5. g3 {[%emt 0:00:56]} Nc6 {[%emt 0:02:36]} 6. Bg2 {[%emt 0:00:06]} Nf6 {[%emt 0:00:05]} 7. O-O {[%emt 0:00:09]} Be7 {[%emt 0:00:31]} 8. dxc5 {[%emt 0:00:20]} Bxc5 {[%emt 0:00:12]} 9. a3 {[%emt 0:00:27]} Ne4 {[%emt 0:05:47]} 10. b4 {[%emt 0:07:11]} Be7 {[%emt 0:00:26]} 11. Bb2 {[%emt 0:00:32]} O-O {[%emt 0:04:28]} 12. Nbd2 {[%emt 0:15:02]} Bf6 {[%emt 0:14:12]} 13. Bxf6 {[%emt 0:01:22]} Qxf6 {[%emt 0:03:36]} 14. Nxe4 {[%emt 0:02:05]} dxe4 {[%emt 0:00:08]} 15. Nd2 {[%emt 0:00:00]} e3 {[%emt 0:07:24]} 16. Ne4 {[%emt 0:00:00]} Qh6 {[%emt 0:14:11]} 17. Qd6 {[%emt 0:07:55]} Be6 {[%emt 0:06:43]} 18. Nc5 {[%emt 0:01:51]} Rad8 {[%emt 0:05:12]} 19. Qf4 {[%emt 0:00:07]} Qxf4 {[%emt 0:04:30]} 20. gxf4 {[%emt 0:00:01]} Nd4 {[%emt 0:04:52]} 21. fxe3 {[%emt 0:21:31]} Nc2 {[%emt 0:10:17]} 22. Rad1 {[%emt 0:02:08]} Nxe3 {[%emt 0:04:41]} 23. Rxd8 {[%emt 0:00:02]} Rxd8 {[%emt 0:00:07]} 24. Rc1 {[%emt 0:00:24]} Nxg2 {[%emt 0:01:39]} 25. Kxg2 {[%emt 0:00:08]} Bd5+ {[%emt 0:05:10]} 26. Kf2 {[%emt 0:00:06]} Bc6 {[%emt 0:00:13]} 27. b5 {[%emt 0:02:43]} Bxb5 {[%emt 0:00:23]} 28. Nxb7 {[%emt 0:00:04]} Ra8 {[%emt 0:05:47]} 29. Rc7 {[%emt 0:06:35]} Ba4 {[%emt 0:00:28]} 30. Nd6 {[%emt 0:00:09]} Bb3 {[%emt 0:00:08]} 31. Ke3 {[%emt 0:02:30]} g6 {[%emt 0:00:22]} 32. Kd4 {[%emt 0:00:35]} a5 {[%emt 0:00:32]} 33. e4 {[%emt 0:02:57]} Kg7 {[%emt 0:00:38]} 34. e5 {[%emt 0:01:50]} a4 {[%emt 0:00:45]} 35. Kc5 {[%emt 0:02:18]} Be6 {[%emt 0:00:39]} 36. Kb5 {[%emt 0:08:59]} Bb3 {[%emt 0:00:13]} 37. Kc5 {[%emt 0:08:34]} Be6 {[%emt 0:00:08]} 38. Kb5 {[%emt 0:04:17]} Bb3 {[%emt 0:00:06]} 39. Kc6 {[%emt 0:01:27]} Be6 {[%emt 0:00:35]} 40. Kc5 {[%emt 0:00:00]} Rf8 {[%emt 0:00:00]} 41. Ra7 {[%emt 0:06:26]} Bb3 {[%emt 0:04:59]} 42. Kc6 {[%emt 0:00:56]} Kh6 {[%emt 0:09:27]} 43. Kd7 {[%emt 0:00:51]} Kh5 {[%emt 0:09:38]} 44. Ke7 {[%emt 0:02:58]} Rb8 {[%emt 0:00:07]} 45. Nxf7 {[%emt 0:03:00]} Kg4 {[%emt 0:00:11]} 46. e6 {[%emt 0:01:37]} Kxf4 {[%emt 0:00:30]} 47. Nd6 {[%emt 0:01:20]} Kg4 {[%emt 0:03:54]} 48. Kd7 {[%emt 0:03:18]} Bxe6+ {[%emt 0:00:08]} 49. Kxe6 {[%emt 0:00:03]} h5 {[%emt 0:00:05]} 50. Rxa4+ {[%emt 0:00:36]} Kh3 {[%emt 0:00:07]} 51. Kf6 {[%emt 0:00:47]} Rg8 {[%emt 0:04:51]} 52. Kg5 {[%emt 0:00:25]} Kxh2 {[%emt 0:00:13]} 53. Rd4 {[%emt 0:00:36]} Kg3 {[%emt 0:00:20]} 54. a4 {[%emt 0:00:07]} Ra8 {[%emt 0:02:10]} 55. Kxg6 {[%emt 0:00:37]} Ra5 {[%emt 0:00:05]} 56. Nf5+ {[%emt 0:00:42]} Kf3 {[%emt 0:00:31]} 57. Kg5 {[%emt 0:00:52]} Ke2 {[%emt 0:00:19]} 58. Kf4 {[%emt 0:01:06]} Rc5 {[%emt 0:01:03]} 59. Ng3+ {[%emt 0:01:58]} Ke1 {[%emt 0:00:26]} 60. Ne4 {[%emt 0:00:11]} Ra5 {[%emt 0:01:40]} 61. Nc3 {[%emt 0:00:55]} Ra8 {[%emt 0:01:00]} 62. Kg5 {[%emt 0:01:28]} Rh8 {[%emt 0:00:53]} 63. Kh4 {[%emt 0:00:39]} Kf2 {[%emt 0:00:25]} 64. Nd5 {[%emt 0:00:31]} 1-0